bitfinex/quotes_ETHUSD_20251025
["timestamp","ask_amount","ask_price","bid_price","bid_amount"]
[1761414170625,0.4615,3932.7,3932.6,0.002]
[1761414170798,0.4615,3932.7,3932.6,3.185]
[1761414203664,0.001,3932.7,3932.6,3.185]
[1761414204465,0.4748,3932.7,3932.6,3.185]
[1761414204975,0.001,3932.7,3932.6,3.185]
[1761414205178,0.001,3932.7,3932.6,4.07116103]
[1761414205374,0.001,3932.7,3932.6,3.3122]
[1761414205688,0.001,3932.7,3932.6,3.4394]
[1761414222922,0.001,3933.1,3932.6,3.7511]
[1761414223129,0.001,3933.1,3933.0,2.54258835]
[1761414223287,0.001,3933.1,3933.0,8.32262483]
[1761414223506,0.001,3933.1,3933.0,8.92301258]
[1761414224039,0.001,3933.1,3933.0,8.60889895]
[1761414224338,0.001,3933.1,3933.0,8.71063701]
[1761414227023,0.001,3933.1,3933.0,8.39893701]
[1761414227429,0.001,3933.1,3933.0,8.71063701]
[1761414229836,0.001,3933.1,3933.0,8.39893701]
[1761414232245,0.001,3933.1,3933.0,8.71063701]
[1761414232645,0.001,3933.1,3933.0,8.39893701]
[1761414233541,0.001,3933.1,3933.0,8.52613701]
[1761414241622,0.001,3933.1,3933.0,8.51613701]
[1761414249834,0.001,3933.1,3933.0,5.33213701]
[1761414250050,0.001,3933.1,3933.0,7.49872641]
[1761414250732,0.001,3933.1,3933.0,5.94352641]
[1761414251271,0.4309,3933.1,3933.0,5.94352641]
[1761414256972,0.001,3933.1,3933.0,5.94352641]
[1761414257476,0.001,3933.1,3933.0,5.94552641]
[1761414259379,0.001,3933.1,3933.0,5.84378835]
[1761414264296,0.4309,3933.1,3933.0,5.84378835]
[1761414264816,0.001,3933.1,3933.0,5.84378835]
[1761414269390,0.4309,3933.1,3933.0,5.84378835]
[1761414269590,0.001,3933.1,3933.0,5.84378835]
[1761414271007,0.4309,3933.1,3933.0,5.84378835]
[1761414272007,0.001,3933.1,3933.0,5.84378835]
[1761414286524,0.4441,3933.1,3933.0,5.84378835]
[1761414287821,0.001,3933.1,3933.0,5.84378835]
[1761414297824,0.4441,3933.1,3933.0,5.84378835]
[1761414298035,0.001,3933.1,3933.0,5.84378835]
[1761414301940,0.4351,3933.1,3933.0,5.84378835]
[1761414302147,0.001,3933.1,3933.0,5.84378835]
[1761414303348,0.001,3933.1,3933.0,0.1292]
[1761414303515,0.4351,3933.1,3933.0,3.3112]
[1761414305248,0.4351,3933.1,3933.0,5.85378835]
[1761414306648,0.4351,3933.1,3933.0,3.3112]
[1761414306850,0.4351,3933.1,3933.0,0.1292]
[1761414307024,0.4351,3933.1,3933.0,3.184]
[1761414308442,0.7455813,3933.1,3933.0,3.184]
[1761414312321,3.288105,3933.1,3933.0,3.184]
[1761414312543,2.9776237,3933.1,3933.0,3.184]
[1761414312859,0.4351,3933.1,3933.0,3.184]
[1761414320154,0.001,3933.1,3933.0,3.184]
[1761414324735,0.001,3933.1,3933.0,5.72658835]
[1761414324964,0.001,3933.1,3933.0,6.6807186]
[1761414330177,0.001,3933.1,3933.0,7.1536186]
[1761414359292,0.001,3933.1,3933.0,3.7841]
[1761414359480,0.469,3933.1,3933.0,3.7841]
[1761414360509,0.001,3933.1,3933.0,3.7841]
[1761414360679,0.469,3933.1,3933.0,3.3112]
[1761414360989,0.469,3933.1,3933.0,0.002]
[1761414361190,0.469,3933.1,3933.0,3.184]
[1761414361389,0.469,3933.1,3933.0,0.002]
[1761414361390,0.77014488,3933.1,3933.0,0.002]
[1761414361590,0.469,3933.1,3933.0,3.184]
[1761414363787,0.001,3933.1,3933.0,3.184]
[1761414363993,0.469,3933.1,3933.0,3.184]
[1761414369617,0.469,3933.1,3933.0,0.002]
[1761414369803,0.469,3933.1,3933.0,3.184]
[1761414369997,0.78285497,3933.1,3933.0,3.184]
[1761414370198,0.469,3933.1,3933.0,3.184]
[1761414371887,6.58221101,3933.1,3933.0,0.002]
[1761414372091,8.90081738,3933.1,3933.0,0.002]
[1761414372290,9.44810042,3933.1,3933.0,0.002]
[1761414372515,11.03397979,3933.1,3933.0,0.002]
[1761414373516,7.46329248,3933.1,3933.0,0.002]
[1761414374102,6.91600944,3933.1,3933.0,0.002]
[1761414375417,5.33013007,3933.1,3933.0,0.002]
[1761414377418,2.0242,3933.1,3933.0,0.002]
[1761414377919,2.12597171,3933.1,3933.0,0.002]
[1761414378232,4.66849541,3933.1,3933.0,0.002]
[1761414379839,4.5667237,3933.1,3933.0,0.002]
[1761414380042,5.27763594,3933.1,3933.0,0.002]
[1761414380618,2.73511224,3933.1,3933.0,0.002]
[1761414380818,2.0242,3933.1,3933.0,0.002]
[1761414381037,4.5667237,3933.1,3933.0,0.002]
[1761414381624,3.0115237,3933.1,3933.0,0.002]
[1761414381822,3.1387237,3933.1,3933.0,0.002]
[1761414408920,3.68710377,3933.1,3933.0,0.002]
[1761414409096,4.46557385,3933.1,3933.0,0.002]
[1761414413938,0.001,3933.1,3933.0,3.57268731]
[1761414414249,0.001,3933.5,3933.1,2.85663733]
[1761414414409,0.001,3933.5,3933.4,3.68168731]
[1761414414915,0.001,3933.5,3933.4,0.4227]
[1761414415303,0.001,3933.5,3933.4,0.71921551]
[1761414420741,2.55697834,3933.9,3933.4,0.71921551]
[1761414420942,0.01494701,3933.9,3933.5,3.186]
[1761414421922,2.55696629,3933.9,3933.5,3.186]
[1761414423952,2.66928733,3933.8,3933.5,3.186]
[1761414424120,2.66928733,3933.8,3933.0,0.002]
[1761414424121,0.2195,3933.6,3933.0,0.002]
[1761414424322,2.54241622,3933.3,3933.0,0.002]
[1761414424806,0.4294,3933.2,3933.0,0.002]
[1761414425640,2.97186258,3933.2,3933.0,0.002]
[1761414426043,0.4294,3933.1,3933.0,0.002]
[1761414428147,2.9719237,3933.1,3933.0,0.002]
[1761414430811,2.5425237,3933.1,3933.0,0.002]
[1761414431019,3.63493968,3933.1,3933.0,0.002]
[1761414434358,3.76213968,3933.1,3933.0,0.002]
[1761414435940,0.1272,3933.1,3933.0,0.002]
[1761414436159,2.5425237,3933.1,3933.0,0.002]
[1761414437457,2.9709237,3933.1,3933.0,0.002]
[1761414446060,3.0981237,3933.1,3933.0,0.002]
[1761414451498,0.1272,3933.1,3933.0,0.002]
[1761414451804,0.1272,3933.1,3933.0,0.3137]
[1761414451805,2.6697237,3933.1,3933.0,0.3137]
[1761414452108,2.6697237,3933.1,3933.0,0.002]
[1761414453256,0.1272,3933.1,3933.0,0.002]
[1761414453597,2.6697237,3933.1,3933.0,0.002]
[1761414456612,0.70006564,3933.9,3933.0,0.002]
[1761414456892,0.70006564,3933.9,3933.0,0.3137]
[1761414456893,0.1272,3933.3,3933.0,0.3137]
[1761414458759,0.1272,3933.3,3933.1,0.3117]
[1761414462678,0.1272,3933.3,3933.2,0.3117]
[1761414462878,0.01494701,3933.9,3933.2,0.4389]
[1761414462879,2.66927429,3933.8,3933.2,0.4389]
[1761414463199,2.66927429,3933.8,3933.3,3.189]
[1761414463492,0.1272,3933.8,3933.4,0.36279]
[1761414463794,2.66927505,3933.8,3933.4,0.67449]
[1761414472413,2.54213644,3933.7,3933.4,0.67449]
[1761414474713,2.54213644,3933.7,3933.4,0.3117]
[1761414475419,2.54213644,3933.7,3933.4,0.002]
[1761414476715,0.1272,3933.8,3933.4,0.002]
[1761414476914,0.01494701,3933.9,3933.4,0.15462329]
[1761414477385,0.01494701,3933.9,3933.4,0.46632329]
[1761414478295,2.55696329,3933.9,3933.4,0.46632329]
[1761414479020,0.01494701,3933.9,3933.4,1.10601626]
[1761414479185,0.01494701,3933.9,3933.6,0.1272]
[1761414479516,0.01494701,3933.9,3933.7,3.188]
[1761414480515,2.55697261,3933.9,3933.7,3.188]
[1761414482824,0.01494701,3933.9,3933.7,3.188]
[1761414483124,2.55696645,3933.9,3933.7,3.188]
[1761414484322,0.01494701,3933.9,3933.7,3.188]
[1761414484925,0.01494701,3933.9,3933.7,3.64857163]
[1761414485243,0.01494701,3933.9,3933.8,0.3117]
[1761414488746,0.01494701,3933.9,3933.7,7.21896534]
[1761414488922,0.01494701,3933.9,3933.7,7.53066534]
[1761414489738,0.01494701,3933.9,3933.8,0.3117]
[1761414489941,0.01494701,3933.9,3933.8,1.33171217]
[1761414492251,0.01494701,3933.9,3933.8,1.33371217]
[1761414495270,0.01494701,3933.9,3933.8,1.02201217]
[1761414497458,0.01494701,3933.9,3933.8,1.33371217]
[1761414500082,0.01494701,3933.9,3933.8,1.02201217]
[1761414520793,0.01494701,3933.9,3933.8,1.04743288]
[1761414520998,0.01494701,3933.9,3933.8,1.14921217]
[1761414521982,0.01494701,3933.9,3933.8,4.00298344]
[1761414522189,0.01494701,3933.9,3933.8,4.10471296]
[1761414522870,0.01494701,3933.9,3933.8,3.79301296]
[1761414529421,0.01494701,3933.9,3933.8,1.25094169]
[1761414531903,2.54168588,3934.4,3933.8,1.25094169]
[1761414531904,0.001,3934.5,3934.3,0.50688]
[1761414532131,0.001,3934.5,3934.2,0.2007]
[1761414532132,0.001,3934.5,3934.4,6.23256361]
[1761414532427,0.001,3934.5,3934.4,7.23292934]
[1761414533607,0.001,3934.5,3934.4,7.33463274]
[1761414538505,0.001,3934.5,3934.4,6.82775274]
[1761414541323,0.001,3934.5,3934.4,3.64375274]
[1761414541609,0.001,3934.5,3934.4,6.83275274]
[1761414541940,0.001,3934.5,3934.4,6.95995274]
[1761414544342,0.001,3934.5,3934.4,3.77095274]
[1761414544643,0.433,3934.5,3934.4,3.2897034]
[1761414546323,0.433,3934.5,3934.4,3.188]
[1761414548853,0.001,3934.5,3934.4,5.72968361]
[1761414549147,0.001,3934.5,3934.4,6.16268361]
[1761414551140,0.001,3934.5,3934.4,7.49795227]
[1761414560461,0.001,3934.5,3934.4,7.06495227]
[1761414560763,0.001,3934.5,3934.4,7.16666265]
[1761414571283,0.001,3934.5,3934.4,7.29386265]
[1761414571483,0.001,3934.5,3934.4,4.10586265]
[1761414571650,0.001,3934.5,3934.4,5.95659399]
[1761414572062,0.001,3934.5,3934.4,2.77059399]
[1761414572280,0.001,3934.5,3934.4,5.95659399]
[1761414579191,0.4446,3934.5,3934.4,2.77059399]
[1761414579379,0.4446,3934.5,3934.4,3.3132]
[1761414580288,0.4446,3934.5,3934.4,5.85488361]
[1761414602745,0.4446,3934.5,3934.4,0.1272]
[1761414602928,0.4446,3934.5,3934.4,3.184]
[1761414603330,0.4446,3934.5,3934.4,5.72568361]
[1761414606246,0.4446,3934.5,3934.4,3.184]
[1761414607846,0.4446,3934.5,3934.3,2.67093185]
[1761414608031,0.4446,3934.5,3934.4,3.185]
[1761414608551,0.4446,3934.5,3934.4,5.72668361]
[1761414608753,0.4446,3934.5,3934.4,2.54168361]
[1761414609057,0.4446,3934.5,3934.4,5.72668361]
[1761414621068,0.4446,3934.5,3934.4,6.17128361]
[1761414627984,0.4384,3934.5,3934.4,6.17128361]
[1761414630191,0.001,3934.5,3934.4,6.17128361]
[1761414630379,0.4384,3934.5,3934.4,6.17128361]
[1761414631882,0.001,3934.5,3934.4,6.17128361]
[1761414633369,0.4384,3934.5,3934.4,6.17128361]
[1761414634595,0.001,3934.5,3934.4,6.17128361]
[1761414636460,0.001,3934.5,3934.4,7.05551277]
[1761414639379,0.001,3934.5,3934.4,6.17128361]
[1761414640409,0.001,3934.5,3934.4,6.29848361]
[1761414695575,0.001,3934.5,3934.4,3.7568]
[1761414695868,0.001,3934.5,3934.4,6.29848361]
[1761414704596,0.001,3934.5,3934.4,3.11348361]
[1761414704801,0.001,3934.5,3934.4,6.29648361]
[1761414705156,0.001,3934.5,3934.4,3.11348361]
[1761414705459,0.001,3934.5,3934.4,6.29648361]
[1761414708781,0.4695,3934.5,3934.4,6.29648361]
[1761414710980,0.001,3934.5,3934.4,6.29648361]
[1761414711177,0.001,3934.5,3934.4,7.59603882]
[1761414711393,0.001,3934.5,3934.4,8.27306138]
[1761414716806,0.001,3934.5,3934.4,11.84021583]
[1761414718789,0.001,3934.5,3934.4,11.52851583]
[1761414719174,0.001,3934.5,3934.4,7.96136138]
[1761414719381,0.4684,3934.5,3934.4,11.16319327]
[1761414720014,0.001,3934.5,3934.4,11.16319327]
[1761414721978,0.001,3934.5,3934.4,12.34709583]
[1761414723312,0.001,3934.5,3934.4,11.98177327]
[1761414730557,0.001,3934.5,3934.4,13.53697327]
[1761414736737,0.001,3934.5,3934.4,13.87887916]
[1761414737114,0.001,3934.5,3934.4,13.56717916]
[1761414737319,0.001,3934.5,3934.4,13.87887916]
[1761414737516,0.001,3934.5,3934.4,6.81702471]
[1761414737840,0.001,3934.5,3934.4,6.80336361]
[1761414738746,0.001,3934.5,3934.3,0.002]
[1761414738747,0.4722,3934.5,3934.3,0.002]
[1761414739043,0.4722,3934.5,3934.4,6.75115445]
[1761414739044,0.57392125,3934.5,3934.4,6.75115445]
[1761414739211,0.001,3934.5,3934.4,9.29283806]
[1761414739740,0.4722,3934.5,3934.4,3.184]
[1761414743304,0.4722,3934.5,3934.4,5.72568361]
[1761414743504,0.001,3934.5,3934.4,5.72568361]
[1761414747955,0.001,3934.5,3934.4,7.43629678]
[1761414748138,0.001,3934.5,3934.4,8.99149678]
[1761414748341,0.001,3934.5,3934.4,8.26696361]
[1761414748715,0.001,3934.5,3934.4,8.39416361]
[1761414750733,0.001,3934.5,3934.4,5.20316361]
[1761414750963,0.001,3934.5,3934.4,8.39416361]
[1761414753351,0.001,3934.5,3934.4,6.83896361]
[1761414759278,0.001,3934.5,3934.4,8.15402478]
[1761414782976,0.001,3934.5,3934.4,6.83896361]
[1761414783172,0.001,3934.5,3934.4,3.14108361]
[1761414783381,0.4561,3934.5,3934.4,5.85688361]
[1761414787868,0.4561,3934.5,3934.4,2.66888361]
[1761414788108,0.4561,3934.5,3934.4,5.85688361]
[1761414796521,0.4561,3934.5,3934.4,5.72968361]
[1761414806444,0.4561,3934.5,3934.4,5.85688361]
[1761414817847,0.001,3934.5,3934.4,5.85688361]
[1761414818170,0.001,3934.5,3934.4,6.74256134]
[1761414823458,0.001,3934.5,3934.4,5.85688361]
[1761414837472,0.4521,3934.5,3934.4,0.1272]
[1761414837687,0.4521,3934.5,3934.4,3.3122]
[1761414838295,0.4521,3934.5,3934.4,5.85388361]
[1761414843000,0.001,3934.5,3934.4,5.85388361]
[1761414851115,0.4444,3934.5,3934.4,5.85388361]
[1761414861844,0.4444,3934.5,3934.4,6.29828361]
[1761414863912,0.001,3934.5,3934.4,6.29828361]
[1761414902116,0.4645,3934.5,3934.4,6.29828361]
[1761414902278,0.4645,3934.5,3934.4,3.11328361]
[1761414902483,0.4645,3934.5,3934.4,6.29728361]
[1761414919453,0.001,3934.5,3934.4,6.29728361]
[1761414942067,0.4576,3934.5,3934.4,6.29728361]
[1761414953209,0.4576,3934.5,3934.4,0.5716]
[1761414953411,0.4576,3934.5,3934.4,6.29728361]
[1761414956808,0.001,3934.5,3934.4,6.29728361]
[1761414958287,0.4576,3934.5,3934.3,0.002]
[1761414958614,0.9152,3934.5,3934.4,3.183]
[1761414959109,0.4586,3934.5,3934.4,3.183]
[1761414959514,0.9152,3934.5,3934.4,3.183]
[1761414975074,0.001,3934.5,3934.4,5.72468361]
[1761414975983,0.001,3934.5,3934.4,5.82640175]
[1761414982389,0.001,3934.5,3934.4,5.72468361]
[1761414982552,0.474,3934.5,3934.4,5.72468361]
[1761414983185,0.001,3934.5,3934.4,5.72468361]
[1761414987391,0.001,3934.5,3934.4,6.711523]
[1761414989374,0.001,3934.5,3934.4,5.85188361]
[1761415002306,0.001,3934.5,3934.4,5.95358908]
[1761415014904,0.001,3934.5,3934.4,6.46046908]
[1761415015052,0.001,3934.5,3934.4,7.09224997]
[1761415020489,0.001,3934.5,3934.4,8.64744997]
[1761415022890,0.001,3934.5,3934.4,12.8015646]
[1761415024477,0.001,3934.5,3934.4,14.5188277]
[1761415025564,0.001,3934.5,3934.4,14.2071277]
[1761415031001,0.001,3934.5,3934.4,14.5188277]
[1761415033100,0.001,3934.5,3934.4,14.2071277]
[1761415033306,0.001,3934.5,3934.4,14.5188277]
[1761415036513,0.001,3934.5,3934.4,14.2071277]
[1761415047911,0.4318,3934.5,3934.4,6.54993218]
[1761415048104,0.4318,3934.5,3934.4,8.01466908]
[1761415055739,0.4318,3934.5,3934.4,4.83266908]
[1761415056043,0.4318,3934.5,3934.4,8.01466908]
[1761415061011,0.001,3934.5,3934.4,8.01466908]
[1761415061323,0.4398,3934.5,3934.4,8.01466908]
[1761415061827,0.4398,3934.5,3934.4,9.25324263]
[1761415068249,0.001,3934.5,3934.4,9.57332352]
[1761415084237,0.001,3934.5,3934.4,8.33474997]
[1761415084772,0.001,3934.5,3934.4,11.90187004]
[1761415087374,0.4302,3934.5,3934.4,11.58178915]
[1761415093097,0.001,3934.5,3934.4,11.58178915]
[1761415093279,0.001,3934.5,3934.4,11.90187004]
[1761415093460,0.001,3934.5,3934.4,13.73973368]
[1761415100206,0.001,3934.5,3934.4,14.05143368]
[1761415101424,0.001,3934.5,3934.4,13.73973368]
[1761415106424,0.4539,3934.5,3934.4,13.73973368]
[1761415106939,0.001,3934.5,3934.4,13.73973368]
[1761415119524,0.4673,3934.5,3934.4,13.73973368]
[1761415122066,0.001,3934.5,3934.4,13.73973368]
[1761415122355,0.4673,3934.5,3934.4,13.73973368]
[1761415130032,0.001,3934.5,3934.4,8.71987004]
[1761415130234,0.4673,3934.5,3934.4,11.58078915]
[1761415132683,0.001,3934.5,3934.4,11.58078915]
[1761415136848,0.4673,3934.5,3934.4,11.58078915]
[1761415139278,0.4673,3934.5,3934.4,8.39978915]
[1761415139478,0.4673,3934.5,3934.4,11.58078915]
[1761415140285,0.001,3934.5,3934.4,13.17616576]
[1761415140483,0.001,3934.5,3934.4,13.80794665]
[1761415141562,0.001,3934.5,3934.4,13.49624665]
[1761415146754,0.001,3934.5,3934.4,14.08339285]
[1761415152384,0.001,3934.5,3934.4,15.91213658]
[1761415161320,0.001,3934.5,3934.4,14.08339285]
[1761415173982,0.4572,3934.5,3934.4,14.08339285]
[1761415175460,0.4572,3934.5,3934.4,15.91213658]
[1761415181376,0.4572,3934.5,3934.4,14.08339285]
[1761415184777,0.001,3934.5,3934.4,14.08339285]
[1761415186287,0.4388,3934.5,3934.4,15.91280537]
[1761415187351,0.4388,3934.5,3934.4,14.31742876]
[1761415191188,0.4388,3934.5,3934.4,6.98216249]
[1761415191390,0.4388,3934.5,3934.4,8.01366908]
[1761415202023,0.4388,3934.5,3934.4,3.27746908]
[1761415202212,0.4388,3934.5,3934.4,6.35676361]
[1761415202713,0.001,3934.5,3934.4,6.35676361]
[1761415203091,0.001,3934.5,3934.4,6.6768445]
[1761415203705,0.4715,3934.5,3934.4,6.6768445]
[1761415205620,0.4715,3934.5,3934.4,6.35676361]
[1761415208738,0.4715,3934.5,3934.3,0.002]
[1761415208910,0.4715,3934.5,3934.4,3.181]
[1761415209111,0.943,3934.5,3934.4,3.181]
[1761415209514,1.29174414,3934.5,3934.4,3.181]
[1761415210243,0.943,3934.5,3934.4,3.181]
[1761415218738,1.0702,3934.5,3934.4,3.181]
[1761415228351,1.0702,3934.5,3934.4,3.182]
[1761415235771,0.4725,3934.5,3934.4,3.182]
[1761415236474,0.9282,3934.5,3934.4,3.182]
[1761415253351,0.001,3934.5,3934.4,5.85088361]
[1761415254422,0.001,3934.5,3934.4,3.3092]
[1761415255939,0.4488,3934.5,3934.4,3.3092]
[1761415258155,0.4488,3934.5,3934.4,5.85088361]
[1761415258650,0.001,3934.5,3934.4,5.85088361]
[1761415261343,0.001,3934.5,3934.4,3.3092]
[1761415261842,0.47,3934.5,3934.4,3.3092]
[1761415262664,0.47,3934.5,3934.4,5.85088361]
[1761415263251,0.001,3934.5,3934.4,5.85088361]
[1761415267285,0.001,3934.5,3934.4,3.3092]
[1761415268369,0.4448,3934.5,3934.4,3.3092]
[1761415269371,0.4448,3934.5,3934.4,5.85088361]
[1761415271071,0.4448,3934.5,3934.4,3.3092]
[1761415271775,0.001,3934.5,3934.4,3.3092]
[1761415272844,0.4448,3934.5,3934.4,3.3092]
[1761415277384,0.001,3934.5,3934.4,5.85088361]
[1761415279557,0.001,3934.5,3934.4,6.58321906]
[1761415280378,0.001,3934.5,3934.4,5.72368361]
[1761415283877,0.4448,3934.5,3934.4,5.72368361]
[1761415287395,0.001,3934.5,3934.4,5.72368361]
[1761415289505,0.001,3934.5,3934.4,5.85088361]
[1761415313557,0.4607,3934.5,3934.4,5.85088361]
[1761415315898,0.001,3934.5,3934.4,5.85088361]
[1761415323326,0.4347,3934.5,3934.4,5.85088361]
[1761415323738,0.001,3934.5,3934.4,5.85088361]
[1761415326879,0.4347,3934.5,3934.4,5.85088361]
[1761415328199,0.001,3934.5,3934.4,5.85088361]
[1761415333501,0.46,3934.5,3934.4,5.85088361]
[1761415338485,0.001,3934.5,3934.4,5.85088361]
[1761415340313,0.46,3934.5,3934.4,5.85088361]
[1761415341613,0.46,3934.5,3934.4,0.1272]
[1761415341815,0.46,3934.5,3934.4,3.3082]
[1761415342114,0.46,3934.5,3934.4,5.84988361]
[1761415347233,0.46,3934.5,3934.4,2.66888361]
[1761415347408,0.46,3934.5,3934.4,5.84988361]
[1761415348130,0.001,3934.5,3934.4,5.84988361]
[1761415348720,0.46,3934.5,3934.4,5.84988361]
[1761415359082,0.001,3934.5,3934.4,5.84988361]
[1761415359379,0.001,3934.5,3934.4,9.29088387]
[1761415363381,0.001,3934.5,3934.4,5.72268361]
[1761415367298,0.4502,3934.5,3934.4,5.72268361]
[1761415369201,0.4502,3934.5,3934.4,5.84988361]
[1761415376581,0.4502,3934.5,3934.4,3.3082]
[1761415376782,0.4502,3934.5,3934.4,5.84988361]
[1761415379614,0.001,3934.5,3934.4,3.3082]
[1761415379914,0.4502,3934.5,3934.4,5.84988361]
[1761415380811,0.4502,3934.5,3934.4,3.3082]
[1761415381394,0.4502,3934.5,3934.4,5.84988361]
[1761415382814,0.4502,3934.5,3934.4,3.3082]
[1761415383716,0.4502,3934.5,3934.4,5.84988361]
[1761415385014,0.4502,3934.5,3934.4,3.3082]
[1761415386894,0.4527,3934.5,3934.4,0.1272]
[1761415387101,0.4527,3934.5,3934.4,3.181]
[1761415387414,0.76513824,3934.5,3934.4,3.181]
[1761415387820,0.76513824,3934.5,3934.3,0.002]
[1761415388123,0.4517,3934.4,3934.3,0.002]
[1761415388422,0.4517,3934.4,3934.3,3.183]
[1761415389615,0.5789,3934.4,3934.3,3.183]
[1761415404945,1.3418443,3934.4,3934.3,3.183]
[1761415405242,0.5789,3934.4,3934.3,3.183]
[1761415406420,0.9675409,3934.4,3934.3,3.183]
[1761415409533,0.9685409,3934.4,3934.3,3.183]
[1761415412448,0.5168409,3934.4,3934.3,3.183]
[1761415412956,0.9894409,3934.4,3934.3,3.183]
[1761415415946,3.53112451,3934.4,3934.3,3.183]
[1761415416314,4.29409403,3934.4,3934.3,3.183]
[1761415423031,4.29409403,3934.4,3934.3,0.002]
[1761415426980,5.84929403,3934.4,3934.3,0.002]
[1761415447223,6.39717506,3934.4,3934.3,0.002]
[1761415451544,6.36297506,3934.4,3934.3,0.002]
[1761415468013,5.60000554,3934.4,3934.3,0.002]
[1761415469978,9.17077625,3934.4,3934.3,0.002]
[1761415470190,9.93400005,3934.4,3934.3,0.002]
[1761415473320,9.93400005,3934.4,3933.8,0.002]
[1761415473321,4.32140666,3933.9,3933.8,1e-08]
[1761415473479,11.6210584,3933.9,3933.8,1e-08]
[1761415473683,12.0594584,3933.9,3933.8,1e-08]
[1761415474214,12.16123633,3933.9,3933.8,1e-08]
[1761415474590,12.66811633,3933.9,3933.8,1e-08]
[1761415474806,14.32588866,3933.9,3933.8,1e-08]
[1761415475206,13.77800763,3933.9,3933.8,1e-08]
[1761415475726,4.09746515,3933.5,3933.4,1e-08]
[1761415475904,7.28246515,3933.5,3933.4,1e-08]
[1761415476105,8.26741197,3933.5,3933.4,1e-08]
[1761415476404,9.28702637,3933.5,3933.4,1e-08]
[1761415476820,8.74047955,3933.5,3933.4,1e-08]
[1761415478348,12.31125026,3933.5,3933.4,1e-08]
[1761415479439,13.54077444,3933.5,3933.4,1e-08]
[1761415479607,12.85770545,3933.5,3933.4,1e-08]
[1761415481765,4.10833474,3933.5,3933.4,1e-08]
[1761415481905,3.56187955,3933.5,3933.4,0.31170001]
[1761415482106,5.11707955,3933.5,3933.4,0.31170001]
[1761415482328,13.37134891,3933.5,3933.4,1e-08]
[1761415483362,13.49854891,3933.5,3933.4,1e-08]
[1761415483562,9.9277782,3933.5,3933.4,1e-08]
[1761415483859,13.49854891,3933.5,3933.4,1e-08]
[1761415484426,13.05334891,3933.5,3933.4,1e-08]
[1761415485126,12.50793026,3933.5,3933.4,1e-08]
[1761415485558,8.43027955,3933.5,3933.4,1e-08]
[1761415486465,8.87547955,3933.5,3933.4,1e-08]
[1761415491083,8.97551483,3933.5,3933.4,1e-08]
[1761415493960,9.42071483,3933.5,3933.4,1e-08]
[1761415494493,8.97551483,3933.5,3933.4,1e-08]
[1761415502580,9.41891483,3933.5,3933.4,1e-08]
[1761415503192,10.10198382,3933.5,3933.4,1e-08]
[1761415504918,9.65858382,3933.5,3933.4,1e-08]
[1761415510118,8.97551483,3933.5,3933.4,1e-08]
[1761415510629,8.97651483,3933.5,3933.4,1e-08]
[1761415515113,5.4558773,3933.5,3933.4,1e-08]
[1761415515416,5.4558773,3933.5,3933.4,0.31170001]
[1761415515417,4.77090043,3933.5,3933.4,0.31170001]
[1761415516829,4.77090043,3933.5,3933.4,1e-08]
[1761415519435,4.77090043,3933.5,3933.4,0.31170001]
[1761415524826,4.77090043,3933.5,3933.4,1e-08]
[1761415525033,4.77090043,3933.5,3933.4,0.31170001]
[1761415528571,4.77090043,3933.5,3933.4,1e-08]
[1761415528572,5.97160848,3933.5,3933.4,1e-08]
[1761415532982,8.68820848,3933.5,3933.4,1e-08]
[1761415533383,9.15760848,3933.5,3933.4,1e-08]
[1761415534787,5.97160848,3933.5,3933.4,1e-08]
[1761415536571,5.50220848,3933.5,3933.4,1e-08]
[1761415548203,5.93370848,3933.5,3933.4,1e-08]
[1761415548588,5.50220848,3933.5,3933.4,1e-08]
[1761415553615,5.93370848,3933.5,3933.4,1e-08]
[1761415563543,5.50220848,3933.5,3933.4,1e-08]
[1761415570239,5.97690848,3933.5,3933.4,1e-08]
[1761415578630,5.50220848,3933.5,3933.4,1e-08]
[1761415579660,3.08850043,3933.5,3933.4,0.31170001]
[1761415580262,2.54326515,3933.5,3933.4,0.31170001]
[1761415589674,2.67046515,3933.5,3933.4,0.31170001]
[1761415593784,2.67046515,3933.5,3933.4,1e-08]
[1761415601970,2.66732527,3933.5,3933.4,1e-08]
[1761415621529,3.10712527,3933.5,3933.4,1e-08]
[1761415621732,3.67205527,3933.5,3933.4,3.18300001]
[1761415622107,3.67205527,3933.5,3933.4,1e-08]
[1761415622307,4.22003164,3933.5,3933.4,1e-08]
[1761415622511,3.67205527,3933.5,3933.4,1e-08]
[1761415627943,3.23225527,3933.5,3933.4,1e-08]
[1761415628144,2.66732527,3933.5,3933.4,1e-08]
[1761415633778,3.09622527,3933.5,3933.4,1e-08]
[1761415639081,2.66732527,3933.5,3933.4,1e-08]
[1761415643388,3.09622527,3933.5,3933.4,1e-08]
[1761415644001,2.66732527,3933.5,3933.4,1e-08]
[1761415645371,3.09622527,3933.5,3933.4,1e-08]
[1761415647284,5.21526527,3933.5,3933.4,1e-08]
[1761415647484,5.76313901,3933.5,3933.4,1e-08]
[1761415648281,5.86491176,3933.5,3933.4,1e-08]
[1761415659813,5.86461963,3933.5,3933.4,1e-08]
[1761415668464,5.43571963,3933.5,3933.4,1e-08]
[1761415668763,5.91061963,3933.5,3933.4,1e-08]
[1761415674762,9.47329963,3933.5,3933.4,1e-08]
[1761415675259,10.15772928,3933.5,3933.4,1e-08]
[1761415676060,9.47329963,3933.5,3933.4,1e-08]
[1761415676263,10.15752591,3933.5,3933.4,1e-08]
[1761415679032,9.47329963,3933.5,3933.4,1e-08]
[1761415679362,10.1572358,3933.5,3933.4,1e-08]